[Event "Titled Tuesday Blitz August 22 Late 2023"]
[White "Andrews, Todd"]
[Black "Shuvalova, Polina"]
[WhiteFideId "2012456"]
[BlackFideId "24171760"]
[WhiteElo "2392"]
[BlackElo "2663"]
[Result "0-1"]
[Round "6"]
[TimeControl "180+1"]
[Date "2023.08.22"]
[WhiteClock "0:00:02"]
[BlackClock "0:00:18"]
[Board "44"]

1. e4 {[%clk 0:03:00]}  c6 {[%clk 0:02:58]} 2. c4 {[%clk 0:03:00]}  d5 {[%clk 0:02:59]} 3. exd5 {[%clk 0:03:00]}  cxd5 {[%clk 0:03:00]} 4. cxd5 {[%clk 0:03:01]}  Nf6 {[%clk 0:02:58]} 5. Nc3 {[%clk 0:03:02]}  Nxd5 {[%clk 0:02:58]} 6. Nf3 {[%clk 0:03:01]}  Nc6 {[%clk 0:02:55]} 7. Bc4 {[%clk 0:03:02]}  e6 {[%clk 0:02:47]} 8. d4 {[%clk 0:02:59]}  Bb4 {[%clk 0:02:46]} 9. Bd2 {[%clk 0:02:58]}  O-O {[%clk 0:02:46]} 10. O-O {[%clk 0:02:58]}  Be7 {[%clk 0:02:31]} 11. a3 {[%clk 0:02:50]}  Bf6 {[%clk 0:02:31]} 12. Bd3 {[%clk 0:02:21]}  Nxd4 {[%clk 0:02:23]} 13. Nxd4 {[%clk 0:02:20]}  Bxd4 {[%clk 0:02:24]} 14. Qh5 {[%clk 0:02:02]}  g6 {[%clk 0:02:21]} 15. Qf3 {[%clk 0:01:55]}  Nxc3 {[%clk 0:02:19]} 16. bxc3 {[%clk 0:01:52]}  Bg7 {[%clk 0:02:18]} 17. Rab1 {[%clk 0:01:48]}  Qc7 {[%clk 0:02:09]} 18. h4 {[%clk 0:01:38]}  Rd8 {[%clk 0:02:07]} 19. Bg5 {[%clk 0:01:33]}  Rf8 {[%clk 0:01:58]} 20. h5 {[%clk 0:01:30]}  Qe5 {[%clk 0:01:43]} 21. Be7 {[%clk 0:01:19]}  Re8 {[%clk 0:01:40]} 22. hxg6 {[%clk 0:01:10]}  hxg6 {[%clk 0:01:38]} 23. Rfe1 {[%clk 0:00:59]}  Qxc3 {[%clk 0:01:35]} 24. Rec1 {[%clk 0:00:45]}  Qe5 {[%clk 0:01:27]} 25. Rc5 {[%clk 0:00:36]}  Qd4 {[%clk 0:01:20]} 26. Rc7 {[%clk 0:00:23]}  Qe5 {[%clk 0:00:45]} 27. Bd6 {[%clk 0:00:20]}  Qf6 {[%clk 0:00:45]} 28. Qe4 {[%clk 0:00:14]}  e5 {[%clk 0:00:44]} 29. Bc4 {[%clk 0:00:12]}  Be6 {[%clk 0:00:44]} 30. Rbxb7 {[%clk 0:00:09]}  Rac8 {[%clk 0:00:29]} 31. Bxe6 {[%clk 0:00:07]}  Rxc7 {[%clk 0:00:29]} 32. Bxc7 {[%clk 0:00:03]}  Qxe6 {[%clk 0:00:30]} 33. Rxa7 {[%clk 0:00:02]}  Qb3 {[%clk 0:00:24]} 34. g3 {[%clk 0:00:02]}  Rc8 {[%clk 0:00:21]} 35. Bd6 {[%clk 0:00:03]}  Qd1+ {[%clk 0:00:19]} 36. Kg2 {[%clk 0:00:03]}  Qxd6 {[%clk 0:00:20]} 37. Ra8 {[%clk 0:00:01]}  Rxa8 {[%clk 0:00:18]} 38. Qxa8+ {[%clk 0:00:02]}  Kh7 {[%clk 0:00:19]} 39. a4 {[%clk 0:00:03]}  Qd3 {[%clk 0:00:15]} 40. a5 {[%clk 0:00:03]}  e4 {[%clk 0:00:16]} 41. a6 {[%clk 0:00:03]}  Qf3+ {[%clk 0:00:16]} 42. Kg1 {[%clk 0:00:03]}  Bd4 {[%clk 0:00:17]} 43. Qb7 {[%clk 0:00:01]}  Qxf2+ {[%clk 0:00:17]} 44. Kh1 {[%clk 0:00:02]}  Qg1# {[%clk 0:00:18]} 0-1


[Site "https://www.chess.com"]

[Event "Titled Tuesday Blitz August 22 Late 2023"]
[White "Santos Latasa, Jaime"]
[Black "Kochiev, Ivan"]
[WhiteFideId "2293307"]
[BlackFideId "2917890"]
[WhiteElo "2955"]
[BlackElo "2577"]
[Result "1-0"]
[Round "6"]
[TimeControl "180+1"]
[Date "2023.08.22"]
[WhiteClock "0:02:37"]
[BlackClock "0:02:18"]
[Board "47"]

1. Nf3 {[%clk 0:03:00]}  Nf6 {[%clk 0:02:59]} 2. c4 {[%clk 0:03:00]}  e6 {[%clk 0:02:58]} 3. Nc3 {[%clk 0:03:01]}  d5 {[%clk 0:02:54]} 4. e3 {[%clk 0:03:01]}  Be7 {[%clk 0:02:53]} 5. b3 {[%clk 0:03:01]}  O-O {[%clk 0:02:53]} 6. Bb2 {[%clk 0:03:01]}  b6 {[%clk 0:02:53]} 7. cxd5 {[%clk 0:03:01]}  Nxd5 {[%clk 0:02:53]} 8. Nxd5 {[%clk 0:03:01]}  Qxd5 {[%clk 0:02:54]} 9. Qc2 {[%clk 0:03:01]}  c5 {[%clk 0:02:53]} 10. Bd3 {[%clk 0:02:58]}  Bb7 {[%clk 0:02:52]} 11. Bxh7+ {[%clk 0:02:55]}  Kh8 {[%clk 0:02:52]} 12. Bd3 {[%clk 0:02:55]}  Nc6 {[%clk 0:02:52]} 13. Bc4 {[%clk 0:02:56]}  Qd7 {[%clk 0:02:50]} 14. a3 {[%clk 0:02:47]}  Rad8 {[%clk 0:02:48]} 15. h4 {[%clk 0:02:43]}  Bf6 {[%clk 0:02:23]} 16. Ng5 {[%clk 0:02:38]}  Ne5 {[%clk 0:02:18]} 17. Qh7# {[%clk 0:02:37]} 1-0


[Site "https://www.chess.com"]

[Event "Titled Tuesday Blitz August 22 Late 2023"]
[White "Mikaelyan, Arman"]
[Black "Przybylski, Wojciech"]
[WhiteFideId "13304852"]
[BlackFideId "1117599"]
[WhiteElo "2895"]
[BlackElo "2575"]
[Result "1-0"]
[Round "6"]
[TimeControl "180+1"]
[Date "2023.08.22"]
[WhiteClock "0:01:19"]
[BlackClock "0:00:05"]
[Board "48"]

1. b4 {[%clk 0:02:56]}  e5 {[%clk 0:02:54]} 2. Bb2 {[%clk 0:02:57]}  d6 {[%clk 0:02:51]} 3. e3 {[%clk 0:02:56]}  Be6 {[%clk 0:02:50]} 4. c4 {[%clk 0:02:56]}  f5 {[%clk 0:02:49]} 5. Nf3 {[%clk 0:02:56]}  Nf6 {[%clk 0:02:48]} 6. d4 {[%clk 0:02:56]}  e4 {[%clk 0:02:47]} 7. d5 {[%clk 0:02:56]}  Bg8 {[%clk 0:02:45]} 8. Nd4 {[%clk 0:02:57]}  Qd7 {[%clk 0:02:42]} 9. Be2 {[%clk 0:02:56]}  Be7 {[%clk 0:02:41]} 10. h4 {[%clk 0:02:54]}  Bf7 {[%clk 0:02:40]} 11. h5 {[%clk 0:02:53]}  h6 {[%clk 0:02:38]} 12. Nd2 {[%clk 0:02:44]}  c6 {[%clk 0:02:36]} 13. N2b3 {[%clk 0:02:38]}  O-O {[%clk 0:02:33]} 14. dxc6 {[%clk 0:02:36]}  bxc6 {[%clk 0:02:29]} 15. c5 {[%clk 0:02:32]}  d5 {[%clk 0:02:22]} 16. Na5 {[%clk 0:02:25]}  Bd8 {[%clk 0:02:11]} 17. Qa4 {[%clk 0:02:23]}  Be8 {[%clk 0:02:05]} 18. Rh3 {[%clk 0:02:19]}  f4 {[%clk 0:02:03]} 19. exf4 {[%clk 0:02:16]}  Bc7 {[%clk 0:02:03]} 20. f5 {[%clk 0:02:06]}  Be5 {[%clk 0:01:58]} 21. O-O-O {[%clk 0:02:06]}  Nh7 {[%clk 0:01:53]} 22. Rg3 {[%clk 0:01:59]}  Bxg3 {[%clk 0:01:49]} 23. fxg3 {[%clk 0:01:58]}  Ng5 {[%clk 0:01:41]} 24. g4 {[%clk 0:01:55]}  a6 {[%clk 0:01:38]} 25. Qb3 {[%clk 0:01:51]}  Kh7 {[%clk 0:01:35]} 26. Qc3 {[%clk 0:01:50]}  Rf7 {[%clk 0:01:31]} 27. Qg3 {[%clk 0:01:47]}  Qc7 {[%clk 0:01:28]} 28. Qxc7 {[%clk 0:01:42]}  Rxc7 {[%clk 0:01:28]} 29. Kc2 {[%clk 0:01:43]}  Re7 {[%clk 0:01:13]} 30. Bc1 {[%clk 0:01:40]}  Nf7 {[%clk 0:01:07]} 31. Bf4 {[%clk 0:01:38]}  Nd8 {[%clk 0:00:48]} 32. Bd6 {[%clk 0:01:36]}  Rf7 {[%clk 0:00:45]} 33. Rf1 {[%clk 0:01:35]}  Bd7 {[%clk 0:00:44]} 34. Kd2 {[%clk 0:01:30]}  Kg8 {[%clk 0:00:44]} 35. Ke3 {[%clk 0:01:31]}  Be8 {[%clk 0:00:34]} 36. a4 {[%clk 0:01:31]}  Bd7 {[%clk 0:00:33]} 37. Rb1 {[%clk 0:01:30]}  Be8 {[%clk 0:00:33]} 38. Bd1 {[%clk 0:01:25]}  Rd7 {[%clk 0:00:29]} 39. Bb3 {[%clk 0:01:24]}  Rxd6 {[%clk 0:00:22]} 40. cxd6 {[%clk 0:01:25]}  Nf7 {[%clk 0:00:22]} 41. Rc1 {[%clk 0:01:20]}  Nxd6 {[%clk 0:00:21]} 42. Naxc6 {[%clk 0:01:20]}  Nxc6 {[%clk 0:00:19]} 43. Nxc6 {[%clk 0:01:21]}  Nc4+ {[%clk 0:00:07]} 44. Bxc4 {[%clk 0:01:21]}  Bxc6 {[%clk 0:00:06]} 45. Bb3 {[%clk 0:01:22]}  Bb7 {[%clk 0:00:06]} 46. Rc7 {[%clk 0:01:22]}  Rb8 {[%clk 0:00:07]} 47. Rxb7 {[%clk 0:01:22]}  Rd8 {[%clk 0:00:06]} 48. Kd4 {[%clk 0:01:21]}  Kf8 {[%clk 0:00:05]} 49. Ra7 {[%clk 0:01:19]}  Rb8 {[%clk 0:00:05]} 50. Bxd5 {[%clk 0:01:19]}  Rxb4+ {[%clk 0:00:05]} 51. Ke3 {[%clk 0:01:18]}  Rxa4 {[%clk 0:00:06]} 52. Bxe4 {[%clk 0:01:17]}  Ra3+ {[%clk 0:00:05]} 53. Kf4 {[%clk 0:01:18]}  a5 {[%clk 0:00:06]} 54. Ke5 {[%clk 0:01:18]}  a4 {[%clk 0:00:06]} 55. Ke6 {[%clk 0:01:18]}  Kg8 {[%clk 0:00:05]} 56. Ra8+ {[%clk 0:01:18]}  Kh7 {[%clk 0:00:04]} 57. f6+ {[%clk 0:01:19]}  g6 {[%clk 0:00:05]} 58. hxg6# {[%clk 0:01:19]} 1-0


[Site "https://www.chess.com"]

[Event "Titled Tuesday Blitz August 22 Late 2023"]
[White "Mekhitarian, Krikor Sevag"]
[Black "Auger_Pi"]
[WhiteFideId "2107660"]
[WhiteElo "2845"]
[BlackElo "2571"]
[Result "0-1"]
[Round "6"]
[TimeControl "180+1"]
[Date "2023.08.22"]
[WhiteClock "0:00:03"]
[BlackClock "0:00:22"]
[Board "49"]

1. Nf3 {[%clk 0:03:00]}  d5 {[%clk 0:02:59]} 2. c4 {[%clk 0:02:59]}  dxc4 {[%clk 0:02:57]} 3. e3 {[%clk 0:02:50]}  Nf6 {[%clk 0:02:57]} 4. Bxc4 {[%clk 0:02:50]}  e6 {[%clk 0:02:57]} 5. d4 {[%clk 0:02:45]}  c5 {[%clk 0:02:55]} 6. O-O {[%clk 0:02:45]}  a6 {[%clk 0:02:55]} 7. e4 {[%clk 0:02:46]}  b5 {[%clk 0:02:54]} 8. Bb3 {[%clk 0:02:40]}  cxd4 {[%clk 0:02:54]} 9. e5 {[%clk 0:02:35]}  Nfd7 {[%clk 0:02:54]} 10. Re1 {[%clk 0:02:32]}  Bb7 {[%clk 0:02:53]} 11. Bf4 {[%clk 0:02:32]}  Nc6 {[%clk 0:02:47]} 12. Nbd2 {[%clk 0:02:32]}  Be7 {[%clk 0:02:41]} 13. Rc1 {[%clk 0:02:30]}  Nc5 {[%clk 0:02:37]} 14. Bc2 {[%clk 0:02:29]}  Nb4 {[%clk 0:02:35]} 15. Bb1 {[%clk 0:01:15]}  Nbd3 {[%clk 0:02:31]} 16. Bg3 {[%clk 0:01:15]}  O-O {[%clk 0:02:24]} 17. h4 {[%clk 0:01:07]}  Rc8 {[%clk 0:02:18]} 18. Rxc5 {[%clk 0:01:04]}  Nxc5 {[%clk 0:02:11]} 19. Ng5 {[%clk 0:01:00]}  d3 {[%clk 0:02:08]} 20. Qg4 {[%clk 0:00:40]}  Qd5 {[%clk 0:02:01]} 21. Ngf3 {[%clk 0:00:37]}  a5 {[%clk 0:01:52]} 22. h5 {[%clk 0:00:37]}  h6 {[%clk 0:01:50]} 23. Bf4 {[%clk 0:00:37]}  Kh8 {[%clk 0:01:49]} 24. Be3 {[%clk 0:00:37]}  Ne4 {[%clk 0:01:46]} 25. Rd1 {[%clk 0:00:26]}  Nxd2 {[%clk 0:01:42]} 26. Bxd2 {[%clk 0:00:26]}  Qe4 {[%clk 0:01:37]} 27. Qg3 {[%clk 0:00:24]}  Rfd8 {[%clk 0:01:33]} 28. Re1 {[%clk 0:00:21]}  Qf5 {[%clk 0:01:29]} 29. Bxa5 {[%clk 0:00:20]}  Bxf3 {[%clk 0:01:24]} 30. gxf3 {[%clk 0:00:21]}  Rd5 {[%clk 0:01:13]} 31. Bd2 {[%clk 0:00:20]}  Qxh5 {[%clk 0:01:09]} 32. f4 {[%clk 0:00:20]}  Bc5 {[%clk 0:01:08]} 33. Kg2 {[%clk 0:00:20]}  Rcd8 {[%clk 0:01:05]} 34. a3 {[%clk 0:00:18]}  Be7 {[%clk 0:00:47]} 35. Ba2 {[%clk 0:00:14]}  Rd4 {[%clk 0:00:45]} 36. Bb1 {[%clk 0:00:10]}  Qh4 {[%clk 0:00:40]} 37. Kf3 {[%clk 0:00:10]}  Qxg3+ {[%clk 0:00:39]} 38. fxg3 {[%clk 0:00:11]}  b4 {[%clk 0:00:39]} 39. a4 {[%clk 0:00:10]}  b3 {[%clk 0:00:39]} 40. a5 {[%clk 0:00:10]}  Bb4 {[%clk 0:00:39]} 41. Rd1 {[%clk 0:00:11]}  Bxd2 {[%clk 0:00:38]} 42. Rxd2 {[%clk 0:00:12]}  Ra4 {[%clk 0:00:39]} 43. Ke3 {[%clk 0:00:09]}  Rxa5 {[%clk 0:00:39]} 44. Bxd3 {[%clk 0:00:10]}  Rad5 {[%clk 0:00:38]} 45. Rd1 {[%clk 0:00:10]}  g6 {[%clk 0:00:37]} 46. Rd2 {[%clk 0:00:10]}  Kg7 {[%clk 0:00:37]} 47. Rd1 {[%clk 0:00:11]}  f6 {[%clk 0:00:37]} 48. exf6+ {[%clk 0:00:11]}  Kxf6 {[%clk 0:00:38]} 49. Rd2 {[%clk 0:00:11]}  g5 {[%clk 0:00:37]} 50. fxg5+ {[%clk 0:00:11]}  Kxg5 {[%clk 0:00:36]} 51. Rd1 {[%clk 0:00:10]}  h5 {[%clk 0:00:35]} 52. Rd2 {[%clk 0:00:10]}  e5 {[%clk 0:00:34]} 53. Rd1 {[%clk 0:00:10]}  e4 {[%clk 0:00:34]} 54. Kxe4 {[%clk 0:00:09]}  Rxd3 {[%clk 0:00:22]} 55. Rxd3 {[%clk 0:00:10]}  Rxd3 {[%clk 0:00:22]} 56. Kxd3 {[%clk 0:00:03]}  Kg4 {[%clk 0:00:22]} 0-1


[Site "https://www.chess.com"]

[Event "Titled Tuesday Blitz August 22 Late 2023"]
[White "Flom, Gabriel"]
[Black "Bartel, Mateusz"]
[WhiteFideId "621650"]
[BlackFideId "1112635"]
[WhiteElo "2570"]
[BlackElo "2838"]
[Result "1/2-1/2"]
[Round "6"]
[TimeControl "180+1"]
[Date "2023.08.22"]
[WhiteClock "0:00:05"]
[BlackClock "0:00:07"]
[Board "50"]

1. e4 {[%clk 0:02:58]}  e6 {[%clk 0:02:50]} 2. Nf3 {[%clk 0:02:56]}  d5 {[%clk 0:02:49]} 3. e5 {[%clk 0:02:57]}  c5 {[%clk 0:02:41]} 4. b4 {[%clk 0:02:56]}  cxb4 {[%clk 0:02:42]} 5. a3 {[%clk 0:02:56]}  bxa3 {[%clk 0:02:42]} 6. d4 {[%clk 0:02:55]}  Nc6 {[%clk 0:02:35]} 7. c3 {[%clk 0:02:55]}  f6 {[%clk 0:02:35]} 8. Bd3 {[%clk 0:02:53]}  Nh6 {[%clk 0:02:32]} 9. Bxh6 {[%clk 0:02:49]}  gxh6 {[%clk 0:02:31]} 10. exf6 {[%clk 0:02:48]}  Qxf6 {[%clk 0:02:30]} 11. O-O {[%clk 0:02:46]}  Bd6 {[%clk 0:02:26]} 12. Nxa3 {[%clk 0:02:47]}  O-O {[%clk 0:02:26]} 13. Nc2 {[%clk 0:02:29]}  Bd7 {[%clk 0:02:23]} 14. Ne3 {[%clk 0:02:28]}  Qg7 {[%clk 0:02:18]} 15. g3 {[%clk 0:01:33]}  Rf7 {[%clk 0:02:13]} 16. Nh4 {[%clk 0:01:33]}  Raf8 {[%clk 0:02:12]} 17. Nhg2 {[%clk 0:01:33]}  e5 {[%clk 0:01:54]} 18. Nxd5 {[%clk 0:01:26]}  exd4 {[%clk 0:01:54]} 19. cxd4 {[%clk 0:00:59]}  Qxd4 {[%clk 0:01:41]} 20. Nde3 {[%clk 0:00:52]}  Ne5 {[%clk 0:01:30]} 21. Bc4 {[%clk 0:00:44]}  Qxd1 {[%clk 0:00:53]} 22. Bxf7+ {[%clk 0:00:43]}  Nxf7 {[%clk 0:00:52]} 23. Rfxd1 {[%clk 0:00:42]}  Bc6 {[%clk 0:00:38]} 24. Rxa7 {[%clk 0:00:38]}  Bc5 {[%clk 0:00:35]} 25. Ra5 {[%clk 0:00:37]}  b6 {[%clk 0:00:35]} 26. Rxc5 {[%clk 0:00:27]}  bxc5 {[%clk 0:00:35]} 27. Nf5 {[%clk 0:00:27]}  Be4 {[%clk 0:00:22]} 28. Nge3 {[%clk 0:00:26]}  Ne5 {[%clk 0:00:16]} 29. Nxh6+ {[%clk 0:00:19]}  Kg7 {[%clk 0:00:15]} 30. Nhg4 {[%clk 0:00:18]}  Nf3+ {[%clk 0:00:14]} 31. Kf1 {[%clk 0:00:17]}  h5 {[%clk 0:00:15]} 32. Rd7+ {[%clk 0:00:15]}  Kg6 {[%clk 0:00:12]} 33. Rd6+ {[%clk 0:00:14]}  Kg7 {[%clk 0:00:13]} 34. Rd7+ {[%clk 0:00:10]}  Rf7 {[%clk 0:00:11]} 35. Rxf7+ {[%clk 0:00:07]}  Kxf7 {[%clk 0:00:12]} 36. h3 {[%clk 0:00:04]}  hxg4 {[%clk 0:00:11]} 37. hxg4 {[%clk 0:00:05]}  Ke6 {[%clk 0:00:09]} 38. Ke2 {[%clk 0:00:06]}  Nd4+ {[%clk 0:00:08]} 39. Kd2 {[%clk 0:00:06]}  Bf3 {[%clk 0:00:06]} 40. Kc3 {[%clk 0:00:07]}  Kd6 {[%clk 0:00:06]} 41. Nc4+ {[%clk 0:00:06]}  Kd5 {[%clk 0:00:06]} 42. Ne3+ {[%clk 0:00:06]}  Kc6 {[%clk 0:00:07]} 43. g5 {[%clk 0:00:06]}  Kd6 {[%clk 0:00:04]} 44. g6 {[%clk 0:00:05]}  Ne6 {[%clk 0:00:05]} 45. Nf5+ {[%clk 0:00:05]}  Kd5 {[%clk 0:00:01]} 46. g7 {[%clk 0:00:05]}  Nxg7 {[%clk 0:00:02]} 47. Nxg7 {[%clk 0:00:06]}  Be4 {[%clk 0:00:02]} 48. Nh5 {[%clk 0:00:06]}  Ke5 {[%clk 0:00:02]} 49. Nf4 {[%clk 0:00:06]}  Bf3 {[%clk 0:00:03]} 50. Kc4 {[%clk 0:00:07]}  Ke4 {[%clk 0:00:03]} 51. Kxc5 {[%clk 0:00:07]}  Bg4 {[%clk 0:00:04]} 52. Ng2 {[%clk 0:00:05]}  Kf3 {[%clk 0:00:04]} 53. Ne3 {[%clk 0:00:04]}  Bh3 {[%clk 0:00:05]} 54. g4 {[%clk 0:00:03]}  Bxg4 {[%clk 0:00:04]} 55. Nxg4 {[%clk 0:00:04]}  Kxg4 {[%clk 0:00:05]} 56. Kd4 {[%clk 0:00:05]}  Kf3 {[%clk 0:00:06]} 57. Ke5 {[%clk 0:00:05]}  Kxf2 {[%clk 0:00:07]} 1/2-1/2


[Site "https://www.chess.com"]

[Event "Titled Tuesday Blitz August 22 Late 2023"]
[White "Harshavardhan G B"]
[Black "Willy, Stephen"]
[WhiteFideId "25059009"]
[BlackFideId "30981468"]
[WhiteElo "2799"]
[BlackElo "2569"]
[Result "0-1"]
[Round "6"]
[TimeControl "180+1"]
[Date "2023.08.22"]
[WhiteClock "0:00:08"]
[BlackClock "0:00:04"]
[Board "51"]

1. e4 {[%clk 0:03:00]}  e6 {[%clk 0:02:47]} 2. d4 {[%clk 0:02:59]}  d5 {[%clk 0:02:48]} 3. Bd3 {[%clk 0:02:59]}  dxe4 {[%clk 0:02:45]} 4. Bxe4 {[%clk 0:03:00]}  Nf6 {[%clk 0:02:46]} 5. Bf3 {[%clk 0:03:00]}  c5 {[%clk 0:02:44]} 6. Ne2 {[%clk 0:02:58]}  Nc6 {[%clk 0:02:43]} 7. Be3 {[%clk 0:02:58]}  Nd5 {[%clk 0:02:38]} 8. Nbc3 {[%clk 0:02:28]}  Nxe3 {[%clk 0:02:35]} 9. fxe3 {[%clk 0:02:29]}  Be7 {[%clk 0:02:22]} 10. O-O {[%clk 0:02:28]}  Bg5 {[%clk 0:02:15]} 11. Qd3 {[%clk 0:02:25]}  Nb4 {[%clk 0:02:05]} 12. Qb5+ {[%clk 0:02:14]}  Qd7 {[%clk 0:01:58]} 13. Qxc5 {[%clk 0:02:09]}  Nxc2 {[%clk 0:01:55]} 14. Nb5 {[%clk 0:01:58]}  Be7 {[%clk 0:01:41]} 15. Nc7+ {[%clk 0:01:55]}  Kd8 {[%clk 0:01:38]} 16. Nxe6+ {[%clk 0:01:48]}  Qxe6 {[%clk 0:01:37]} 17. Qxc2 {[%clk 0:01:48]}  Qxe3+ {[%clk 0:01:30]} 18. Kh1 {[%clk 0:01:45]}  Bd6 {[%clk 0:01:26]} 19. Nc3 {[%clk 0:01:34]}  Qh6 {[%clk 0:01:24]} 20. g3 {[%clk 0:01:31]}  Re8 {[%clk 0:01:09]} 21. Qg2 {[%clk 0:01:26]}  Bh3 {[%clk 0:01:07]} 22. Qf2 {[%clk 0:01:18]}  Bxf1 {[%clk 0:01:07]} 23. Rxf1 {[%clk 0:01:19]}  Rb8 {[%clk 0:00:50]} 24. Bg2 {[%clk 0:01:11]}  f6 {[%clk 0:00:48]} 25. Ne4 {[%clk 0:01:09]}  Bc7 {[%clk 0:00:37]} 26. d5 {[%clk 0:01:05]}  Bb6 {[%clk 0:00:33]} 27. Qf5 {[%clk 0:00:58]}  Qg6 {[%clk 0:00:27]} 28. Qf4 {[%clk 0:00:58]}  Re5 {[%clk 0:00:22]} 29. Nd6 {[%clk 0:00:56]}  Bc7 {[%clk 0:00:21]} 30. Qb4 {[%clk 0:00:47]}  Qd3 {[%clk 0:00:11]} 31. Nxb7+ {[%clk 0:00:44]}  Ke8 {[%clk 0:00:09]} 32. d6 {[%clk 0:00:43]}  Bb6 {[%clk 0:00:08]} 33. Qg4 {[%clk 0:00:36]}  Kf7 {[%clk 0:00:05]} 34. a4 {[%clk 0:00:23]}  Rxb7 {[%clk 0:00:05]} 35. Qc8 {[%clk 0:00:19]}  Re8 {[%clk 0:00:03]} 36. Qxb7+ {[%clk 0:00:19]}  Kg8 {[%clk 0:00:03]} 37. Qc6 {[%clk 0:00:19]}  Rd8 {[%clk 0:00:03]} 38. d7 {[%clk 0:00:17]}  Qxd7 {[%clk 0:00:02]} 39. Qc4+ {[%clk 0:00:17]}  Qf7 {[%clk 0:00:01]} 40. Qe4 {[%clk 0:00:17]}  Qd7 {[%clk 0:00:02]} 41. h3 {[%clk 0:00:15]}  h6 {[%clk 0:00:02]} 42. g4 {[%clk 0:00:15]}  Bc7 {[%clk 0:00:03]} 43. Qc4+ {[%clk 0:00:14]}  Kh8 {[%clk 0:00:02]} 44. Qc2 {[%clk 0:00:13]}  Qd6 {[%clk 0:00:03]} 45. Kg1 {[%clk 0:00:13]}  Re8 {[%clk 0:00:03]} 46. Rd1 {[%clk 0:00:12]}  Qh2+ {[%clk 0:00:04]} 47. Kf1 {[%clk 0:00:08]}  Bb6 {[%clk 0:00:04]} 0-1


[Site "https://www.chess.com"]

[Event "Titled Tuesday Blitz August 22 Late 2023"]
[White "Ilkhomi, Jaloliddin"]
[Black "Bauman_Guy"]
[WhiteFideId "14700948"]
[WhiteElo "2568"]
[BlackElo "2794"]
[Result "0-1"]
[Round "6"]
[TimeControl "180+1"]
[Date "2023.08.22"]
[WhiteClock "0:00:07"]
[BlackClock "0:01:32"]
[Board "52"]

1. Nf3 {[%clk 0:03:00]}  d5 {[%clk 0:03:00]} 2. d4 {[%clk 0:02:58]}  c6 {[%clk 0:03:01]} 3. Bf4 {[%clk 0:02:56]}  Nf6 {[%clk 0:03:01]} 4. e3 {[%clk 0:02:52]}  g6 {[%clk 0:03:00]} 5. Nbd2 {[%clk 0:02:50]}  Bg7 {[%clk 0:03:00]} 6. Bd3 {[%clk 0:02:50]}  O-O {[%clk 0:02:59]} 7. Ne5 {[%clk 0:02:51]}  Nbd7 {[%clk 0:02:59]} 8. c3 {[%clk 0:02:49]}  Nh5 {[%clk 0:02:59]} 9. Nxd7 {[%clk 0:02:49]}  Nxf4 {[%clk 0:02:56]} 10. Nxf8 {[%clk 0:02:36]}  Nxd3+ {[%clk 0:02:56]} 11. Ke2 {[%clk 0:02:35]}  Nxf2 {[%clk 0:02:55]} 12. Kxf2 {[%clk 0:02:34]}  Qxf8 {[%clk 0:02:55]} 13. Rf1 {[%clk 0:02:35]}  e5 {[%clk 0:02:52]} 14. Kg1 {[%clk 0:02:34]}  Qe7 {[%clk 0:02:51]} 15. Qf3 {[%clk 0:02:32]}  Be6 {[%clk 0:02:48]} 16. Rae1 {[%clk 0:02:31]}  e4 {[%clk 0:02:48]} 17. Qe2 {[%clk 0:02:31]}  f5 {[%clk 0:02:46]} 18. a3 {[%clk 0:02:30]}  a5 {[%clk 0:02:41]} 19. c4 {[%clk 0:02:29]}  Qf7 {[%clk 0:02:31]} 20. Rc1 {[%clk 0:02:28]}  a4 {[%clk 0:02:26]} 21. cxd5 {[%clk 0:02:28]}  Bxd5 {[%clk 0:02:27]} 22. Nc4 {[%clk 0:02:27]}  Qc7 {[%clk 0:02:21]} 23. Qe1 {[%clk 0:02:16]}  b5 {[%clk 0:02:19]} 24. Ne5 {[%clk 0:02:04]}  Bxe5 {[%clk 0:02:19]} 25. dxe5 {[%clk 0:02:02]}  Qxe5 {[%clk 0:02:19]} 26. Qc3 {[%clk 0:02:03]}  Qxc3 {[%clk 0:02:19]} 27. Rxc3 {[%clk 0:02:03]}  Kf7 {[%clk 0:02:19]} 28. Rd1 {[%clk 0:02:03]}  Ke6 {[%clk 0:02:19]} 29. Kf2 {[%clk 0:02:04]}  g5 {[%clk 0:02:15]} 30. h4 {[%clk 0:02:03]}  h6 {[%clk 0:02:09]} 31. hxg5 {[%clk 0:02:02]}  hxg5 {[%clk 0:02:10]} 32. Rh1 {[%clk 0:02:03]}  f4 {[%clk 0:02:08]} 33. Rh6+ {[%clk 0:01:57]}  Kf5 {[%clk 0:02:07]} 34. Rc5 {[%clk 0:01:55]}  Kg4 {[%clk 0:02:03]} 35. exf4 {[%clk 0:01:35]}  gxf4 {[%clk 0:02:04]} 36. Rg6+ {[%clk 0:01:35]}  Kf5 {[%clk 0:01:42]} 37. Rgxc6 {[%clk 0:01:34]}  e3+ {[%clk 0:01:43]} 38. Ke2 {[%clk 0:01:29]}  Ke4 {[%clk 0:01:44]} 39. Rxd5 {[%clk 0:00:57]}  Kxd5 {[%clk 0:01:44]} 40. Rb6 {[%clk 0:00:55]}  Rg8 {[%clk 0:01:35]} 41. Rxb5+ {[%clk 0:00:53]}  Kc6 {[%clk 0:01:35]} 42. Rf5 {[%clk 0:00:18]}  Rxg2+ {[%clk 0:01:35]} 43. Ke1 {[%clk 0:00:16]}  Rf2 {[%clk 0:01:34]} 44. Rf8 {[%clk 0:00:14]}  Kd5 {[%clk 0:01:34]} 45. Ra8 {[%clk 0:00:12]}  Rxb2 {[%clk 0:01:33]} 46. Rf8 {[%clk 0:00:12]}  Ke4 {[%clk 0:01:33]} 47. Rb8 {[%clk 0:00:07]}  Rxb8 {[%clk 0:01:32]} 0-1


[Site "https://www.chess.com"]

[Event "Titled Tuesday Blitz August 22 Late 2023"]
[White "angelgab3"]
[Black "Dimitrov, Atanas"]
[BlackFideId "2901315"]
[WhiteElo "2563"]
[BlackElo "2718"]
[Result "1-0"]
[Round "6"]
[TimeControl "180+1"]
[Date "2023.08.22"]
[WhiteClock "0:00:41"]
[BlackClock "0:00:00"]
[Board "56"]

1. e4 {[%clk 0:03:00]}  c5 {[%clk 0:02:59]} 2. Nf3 {[%clk 0:03:01]}  d6 {[%clk 0:03:00]} 3. d4 {[%clk 0:03:02]}  cxd4 {[%clk 0:03:01]} 4. Nxd4 {[%clk 0:03:03]}  Nf6 {[%clk 0:03:01]} 5. Nc3 {[%clk 0:03:04]}  g6 {[%clk 0:03:02]} 6. Be3 {[%clk 0:03:03]}  Bg7 {[%clk 0:03:02]} 7. f3 {[%clk 0:03:04]}  Nc6 {[%clk 0:03:02]} 8. Qd2 {[%clk 0:03:05]}  Bd7 {[%clk 0:03:02]} 9. Bc4 {[%clk 0:03:01]}  O-O {[%clk 0:03:01]} 10. O-O-O {[%clk 0:03:00]}  Ne5 {[%clk 0:03:02]} 11. Bb3 {[%clk 0:03:00]}  Rc8 {[%clk 0:03:02]} 12. Kb1 {[%clk 0:02:59]}  Nc4 {[%clk 0:03:01]} 13. Bxc4 {[%clk 0:03:00]}  Rxc4 {[%clk 0:03:02]} 14. g4 {[%clk 0:03:01]}  h5 {[%clk 0:02:55]} 15. gxh5 {[%clk 0:02:33]}  Nxh5 {[%clk 0:02:56]} 16. b3 {[%clk 0:02:33]}  Rc8 {[%clk 0:02:53]} 17. Nce2 {[%clk 0:02:34]}  e5 {[%clk 0:02:36]} 18. Nf5 {[%clk 0:02:33]}  gxf5 {[%clk 0:02:34]} 19. Bh6 {[%clk 0:02:29]}  f4 {[%clk 0:02:16]} 20. Rhg1 {[%clk 0:02:27]}  Kh7 {[%clk 0:01:27]} 21. Bxg7 {[%clk 0:02:26]}  Nxg7 {[%clk 0:01:27]} 22. Qxd6 {[%clk 0:02:25]}  Be6 {[%clk 0:00:44]} 23. Rxg7+ {[%clk 0:02:20]}  Kxg7 {[%clk 0:00:43]} 24. Qxe5+ {[%clk 0:02:05]}  f6 {[%clk 0:00:39]} 25. Rg1+ {[%clk 0:02:05]}  Kf7 {[%clk 0:00:39]} 26. Qh5+ {[%clk 0:02:05]}  Ke7 {[%clk 0:00:40]} 27. Nxf4 {[%clk 0:01:52]}  Bf7 {[%clk 0:00:35]} 28. Qh7 {[%clk 0:01:51]}  Ke8 {[%clk 0:00:19]} 29. Nd5 {[%clk 0:01:48]}  Bxd5 {[%clk 0:00:08]} 30. exd5 {[%clk 0:01:49]}  Qe7 {[%clk 0:00:09]} 31. Qf5 {[%clk 0:01:42]}  Kd8 {[%clk 0:00:09]} 32. Qf4 {[%clk 0:01:06]}  Qe5 {[%clk 0:00:05]} 33. Qb4 {[%clk 0:01:06]}  Rf7 {[%clk 0:00:02]} 34. Qa5+ {[%clk 0:00:45]}  b6 {[%clk 0:00:02]} 35. Rg8+ {[%clk 0:00:44]}  Kd7 {[%clk 0:00:01]} 36. Qa4+ {[%clk 0:00:41]}  Kc7 {[%clk 0:00:00]} 37. Qc6+ {[%clk 0:00:41]} 1-0


[Site "https://www.chess.com"]